fUSD/lending_fUSD_20240109
["ID","MTS","AMOUNT","RATE_DAILY","PERIOD"]
[310911932,1704814346555,-4214.2,0.00041589,30]
[310911933,1704814346565,-500.0,0.00041589,30]
[310911934,1704814346575,-3567.97,0.00041589,30]
[310911935,1704814346586,-500.0,0.00041589,30]
[310911936,1704814346596,-2289.51,0.00041589,30]
[310911937,1704814346605,-2584.46,0.00041589,30]
[310911938,1704814346615,-4952.19,0.00041589,30]
[310911939,1704814346625,-4092.41,0.00041589,30]
[310911940,1704814346635,-546.11,0.00041589,30]
[310911941,1704814346647,-25536.63,0.00041589,30]
[310911942,1704814346657,-1000.5,0.00041589,30]
[310911943,1704814346668,-6469.48,0.00041589,30]
[310911944,1704814346678,-500.0,0.00041589,30]
[310911945,1704814346688,-1883.51,0.00041589,30]
[310911946,1704814346699,-14086.33,0.00041589,30]
[310911947,1704814346709,-17610.03,0.00041589,30]
[310911948,1704814346720,-2218.2,0.00041589,30]
[310911949,1704814346731,-591.77611847,0.00041589,30]
[310911950,1704814346741,-1520.43,0.00041589,30]
[310911951,1704814346752,-2301.6,0.00041589,30]
[310911952,1704814346763,-3584.84,0.00041589,30]
[310911953,1704814346772,-12370.47,0.00041589,30]
[310911954,1704814346783,-82269.16,0.00041589,30]
[310911955,1704814346794,-587.12,0.00041589,30]
[310911956,1704814346804,-500.0,0.00041589,30]
[310911957,1704814346813,-2651.08,0.00041589,30]
[310911958,1704814346826,-811.16,0.00041589,30]
[310911959,1704814346835,-508.85790643,0.00041589,30]
[310911960,1704814346846,-500.0,0.00041589,30]
[310911961,1704814346856,-8660.7,0.00041589,30]
[310911962,1704814346867,-500.0,0.00041589,30]
[310911963,1704814346877,-500.0,0.00041589,30]
[310911964,1704814346886,-7898.64,0.00041589,30]
[310911965,1704814346896,-1178.68,0.00041589,30]
[310911966,1704814346906,-6405.08,0.00041589,30]
[310911967,1704814346917,-6245.69,0.00041589,30]
[310911968,1704814346926,-3770.14,0.00041589,30]
[310911969,1704814346936,-500.0,0.00041589,30]
[310911970,1704814346946,-1235.98,0.00041589,30]
[310911971,1704814346956,-2108.08,0.00041589,30]
[310911972,1704814346967,-1033.39,0.00041589,30]
[310911973,1704814346977,-4003.81,0.00041589,30]
[310911974,1704814346987,-3248.4,0.00041589,30]
[310911975,1704814346997,-500.0,0.00041589,30]
[310911976,1704814347007,-500.0,0.00041589,30]
[310911977,1704814347017,-923.06,0.00041589,30]
[310911978,1704814347027,-500.0,0.00041589,30]
[310911979,1704814347038,-1028.56,0.00041589,30]
[310911980,1704814347048,-818.97,0.00041589,30]
[310911981,1704814347058,-3938.01,0.00041589,30]
[310911982,1704814347069,-500.0,0.00041589,30]
[310911983,1704814347080,-500.0,0.00041589,30]
[310911984,1704814347090,-936.13,0.00041589,30]
[310911985,1704814347101,-5593.35,0.00041589,30]
[310911986,1704814347111,-500.0,0.00041589,30]
[310911987,1704814347122,-500.0,0.00041589,30]
[310911988,1704814347132,-500.0,0.00041589,30]
[310911989,1704814347142,-852.7,0.00041589,30]
[310911990,1704814347152,-756.79,0.00041589,30]
[310911991,1704814347163,-500.0,0.00041589,30]
[310911992,1704814347174,-500.0,0.00041589,30]
[310911993,1704814347184,-2774.75,0.00041589,30]
[310911994,1704814347194,-3304.06,0.00041589,30]
[310911995,1704814347205,-3060.0,0.0004159,3]
[310911996,1704814347215,-561.62,0.0004159,7]
[310911997,1704814347225,-666.66666,0.00041598,8]
[310911998,1704814347235,-8750.0,0.00041625,2]
[310911999,1704814347246,-8750.0,0.00041625,2]
[310912000,1704814347256,-500.0,0.00041643,30]
[310912001,1704814347265,-3257.97,0.00041643,120]
[310912002,1704814347275,-1000.0,0.00041643,30]
[310912003,1704814347286,-1000.0,0.00041643,30]
[310912004,1704814347296,-1000.0,0.00041643,30]
[310912005,1704814347306,-1000.0,0.00041643,30]
[310912006,1704814347316,-1000.0,0.00041643,30]
[310912007,1704814347326,-1000.0,0.00041643,30]
[310912008,1704814347336,-1000.0,0.00041643,30]
[310912009,1704814347347,-2047.0,0.00041643,10]
[310912010,1704814347357,-1917.95373833,0.00041643,10]
[310912011,1704814347367,-1349.16,0.00041671,30]
[310912012,1704814347376,-262.52753587,0.00041671,30]
[310912013,1704814347387,-500.0,0.00041671,30]
[310912014,1704814347397,-1655.21,0.00041671,30]
[310912015,1704814347407,-717.53,0.00041671,30]
[310912016,1704814347417,-684.27,0.00041671,30]
[310912017,1704814347426,-500.0,0.00041671,30]
[310912018,1704814347437,-500.0,0.00041671,30]
[310912019,1704814347446,-500.0,0.00041671,30]
[310912020,1704814347457,-500.0,0.00041671,30]
[310912021,1704814347467,-878.82,0.00041671,30]
[310912022,1704814347476,-500.0,0.00041671,30]
[310912023,1704814347486,-519.51461338,0.00041671,30]
[310912024,1704814347496,-500.0,0.00041671,30]
[310912025,1704814347507,-505.38,0.00041671,30]
[310912026,1704814347517,-1062.3,0.00041671,30]
[310912027,1704814347527,-500.0,0.00041671,30]
[310912028,1704814347537,-500.0,0.00041671,30]
[310912029,1704814347548,-500.0,0.00041671,30]
[310912030,1704814347558,-701.66,0.00041671,30]
[310912031,1704814347568,-1067.49,0.00041671,30]
[310912032,1704814347579,-500.0,0.00041671,30]
[310912033,1704814347590,-500.0,0.00041671,30]
[310912034,1704814347601,-565.87,0.00041671,30]
[310912035,1704814347611,-500.0,0.00041671,30]
[310912036,1704814347621,-500.0,0.00041671,30]
[310912037,1704814347633,-500.0,0.00041671,30]
[310912038,1704814347643,-707.34,0.00041671,30]
[310912039,1704814347653,-676.09,0.00041671,30]
[310912040,1704814347663,-1000.0,0.00041671,30]
[310912041,1704814347673,-2060.33,0.00041671,30]
[310912042,1704814347682,-581.02,0.00041671,30]
[310912043,1704814347692,-1072.03,0.00041671,30]
[310912044,1704814347701,-712.95,0.00041671,30]
[310912045,1704814347711,-500.0,0.00041671,30]
[310912046,1704814347720,-500.0,0.00041671,30]
[310912047,1704814347730,-500.0,0.00041671,30]
[310912048,1704814347740,-569.49,0.00041671,30]
[310912049,1704814347749,-500.0,0.00041671,30]
[310912050,1704814347759,-500.0,0.00041671,30]
[310912051,1704814347769,-500.0,0.00041671,30]
[310912052,1704814347779,-611.31,0.00041671,30]
[310912053,1704814347789,-500.0,0.00041671,30]
[310912054,1704814347799,-500.0,0.00041671,30]
[310912055,1704814347809,-500.0,0.00041671,30]
[310912056,1704814347822,-500.0,0.00041671,30]
[310912057,1704814347832,-500.0,0.00041671,30]
[310912058,1704814347842,-500.0,0.00041671,30]
[310912059,1704814347854,-569.87,0.00041671,2]
[310912060,1704814347864,-500.0,0.00041671,30]
[310912061,1704814347874,-350.14257531,0.00041671,30]
[310912062,1704814347885,-500.0,0.00041671,30]
[310912063,1704814347896,-1090.72,0.00041671,30]
[310912064,1704814347906,-808.52,0.00041671,30]
[310912065,1704814347915,-335.51,0.00041671,30]
[310912066,1704814347925,-500.0,0.00041671,30]
[310912067,1704814347935,-500.0,0.00041671,30]
[310912068,1704814347945,-500.0,0.00041671,30]
[310912069,1704814347956,-500.0,0.00041671,30]
[310912070,1704814347966,-500.0,0.00041671,30]
[310912071,1704814347976,-1089.41,0.00041671,30]
[310912072,1704814347986,-675.87,0.00041671,30]
[310912073,1704814347996,-978.4,0.00041671,30]
[310912074,1704814348006,-500.0,0.00041671,30]
[310912075,1704814348016,-500.0,0.00041671,30]
[310912076,1704814348026,-500.0,0.00041671,30]
[310912077,1704814348036,-500.0,0.00041671,30]
[310912078,1704814348045,-500.0,0.00041671,30]
[310912079,1704814348055,-458.4643436,0.00041671,30]
[310912080,1704814348065,-547.46497152,0.00041671,30]
[310912081,1704814348076,-943.45,0.00041671,30]
[310912082,1704814348086,-500.0,0.00041671,30]
[310912083,1704814348095,-500.0,0.00041671,30]
[310912084,1704814348105,-1046.91,0.00041671,30]
[310912085,1704814348115,-500.0,0.00041671,30]
[310912086,1704814348125,-500.0,0.00041671,30]
[310912087,1704814348135,-500.0,0.00041671,30]
[310912088,1704814348145,-989.32,0.00041671,30]
[310912089,1704814348156,-500.0,0.00041671,30]
[310912090,1704814348166,-523.36,0.00041671,30]
[310912091,1704814348176,-735.81,0.00041671,30]
[310912092,1704814348186,-500.0,0.00041671,30]
[310912093,1704814348196,-500.0,0.00041671,30]
[310912094,1704814348206,-500.0,0.00041671,7]
[310912095,1704814348216,-805.93,0.00041671,30]
[310912096,1704814348227,-500.0,0.00041671,30]
[310912097,1704814348237,-500.0,0.00041671,30]
[310912098,1704814348248,-1029.87,0.00041671,30]
[310912099,1704814348258,-500.0,0.00041671,30]
[310912100,1704814348269,-500.0,0.00041671,30]
[310912101,1704814348280,-500.0,0.00041671,30]
[310912102,1704814348290,-500.0,0.00041671,30]
[310912103,1704814348300,-858.42,0.00041671,30]
[310912104,1704814348310,-985.14,0.00041671,30]
[310912105,1704814348321,-250.0,0.00041671,30]
[310912106,1704814348331,-500.0,0.00041671,30]
[310912107,1704814348342,-887.41,0.00041671,30]
[310912108,1704814348353,-586.06,0.00041671,30]
[310912109,1704814348363,-500.0,0.00041671,30]
[310912110,1704814348374,-542.26,0.00041671,30]
[310912111,1704814348384,-500.0,0.00041671,30]
[310912112,1704814348394,-924.59,0.00041671,30]
[310912113,1704814348405,-500.0,0.00041671,30]
[310912114,1704814348415,-500.0,0.00041671,30]
[310912115,1704814348426,-1031.16,0.00041671,30]
[310912116,1704814348436,-500.0,0.00041671,30]
[310912117,1704814348447,-639.05,0.00041671,30]
[310912118,1704814348457,-651.17,0.00041671,6]
[310912119,1704814348467,-500.0,0.00041671,30]
[310912120,1704814348478,-630.96,0.00041671,30]
[310912121,1704814348488,-808.61,0.00041671,30]
[310912122,1704814348499,-772.64,0.00041671,30]
[310912123,1704814348509,-500.0,0.00041671,30]
[310912124,1704814348519,-768.03,0.00041671,30]
[310912125,1704814348529,-1151.39,0.00041671,30]
[310912126,1704814348539,-502.05634559,0.00041671,30]
[310912127,1704814348549,-500.0,0.00041671,30]
[310912128,1704814348559,-500.0,0.00041671,30]
[310912129,1704814348569,-500.0,0.00041671,30]
[310912130,1704814348578,-500.0,0.00041671,30]
[310912131,1704814348588,-500.0,0.00041671,30]
[310912132,1704814348598,-594.48,0.00041671,30]
[310912133,1704814348608,-1345.27,0.00041671,30]
[310912134,1704814348618,-530.22,0.00041671,30]
[310912135,1704814348629,-504.9,0.00041671,30]
[310912136,1704814348639,-500.0,0.00041671,30]
[310912137,1704814348649,-500.0,0.00041671,30]
[310912138,1704814348661,-898.15,0.00041671,30]
[310912139,1704814349013,-500.0,0.00041671,30]
[310912140,1704814349028,-1000.0,0.00041671,2]
[310912141,1704814349038,-827.59,0.00041671,30]
[310912142,1704814349048,-1088.78,0.00041671,30]
[310912143,1704814349057,-500.0,0.00041671,30]
[310912144,1704814349067,-1220.08,0.00041671,30]
[310912145,1704814349077,-965.85,0.00041671,30]
[310912146,1704814349087,-1200.92,0.00041671,30]
[310912147,1704814349097,-578.4257069,0.00041671,30]
[310912148,1704814349106,-677.14,0.00041671,30]
[310912149,1704814349116,-500.0,0.00041671,30]
[310912150,1704814349126,-500.0,0.00041671,30]
[310912151,1704814349136,-500.0,0.00041671,30]
[310912152,1704814349146,-615.95,0.00041671,30]
[310912153,1704814349155,-500.0,0.00041671,30]
[310912154,1704814349165,-906.91,0.00041671,30]
[310912155,1704814349175,-500.0,0.00041671,30]
[310912156,1704814349185,-500.0,0.00041671,30]
[310912157,1704814349194,-500.0,0.00041671,30]
[310912158,1704814349204,-1003.46,0.00041671,30]
[310912159,1704814349213,-500.0,0.00041671,30]
[310912160,1704814349223,-805.99,0.00041671,30]
[310912161,1704814349233,-500.0,0.00041671,30]
[310912162,1704814349243,-500.0,0.00041671,30]
[310912163,1704814349253,-500.0,0.00041671,30]
[310912164,1704814349262,-479.19162154,0.00041671,30]
[310912165,1704814349272,-500.0,0.00041671,30]
[310912166,1704814349282,-500.0,0.00041671,30]
[310912167,1704814349291,-500.0,0.00041671,30]
[310912168,1704814349301,-920.79,0.00041671,30]
[310912169,1704814349310,-983.43,0.00041671,30]
[310912170,1704814349320,-628.8,0.00041671,30]
[310912171,1704814349329,-500.0,0.00041671,30]
[310912172,1704814349339,-500.0,0.00041671,30]
[310912173,1704814349358,-500.0,0.00041671,30]
[310912174,1704814349368,-500.0,0.00041671,30]
[310912175,1704814349379,-544.66,0.00041671,30]
[310912176,1704814349389,-599.56768927,0.00041671,30]
[310912177,1704814349399,-427.96804044,0.00041671,30]
[310912178,1704814349410,-500.0,0.00041671,30]
[310912179,1704814349420,-500.0,0.00041671,30]
[310912180,1704814349430,-1232.09,0.00041671,30]
[310912181,1704814349441,-500.0,0.00041671,30]
[310912182,1704814349451,-832.26,0.00041671,30]
[310912183,1704814349461,-401.95135477,0.00041671,30]
[310912184,1704814349473,-500.0,0.00041671,7]
[310912185,1704814349483,-500.0,0.00041671,30]
[310912186,1704814349494,-941.95,0.00041671,30]
[310912187,1704814349508,-500.0,0.00041671,30]
[310912188,1704814349519,-809.62,0.00041671,30]
[310912189,1704814349529,-500.0,0.00041671,30]
[310912190,1704814349539,-1379.83,0.00041671,30]
[310912191,1704814349549,-500.0,0.00041671,30]
[310912192,1704814349559,-844.05,0.00041671,30]
[310912193,1704814349570,-851.49,0.00041671,30]
[310912194,1704814349580,-562.95,0.00041671,30]
[310912195,1704814349591,-1162.12,0.00041671,30]
[310912196,1704814349602,-872.21,0.00041671,30]
[310912197,1704814349612,-500.0,0.00041671,30]
[310912198,1704814349622,-706.17,0.00041671,30]
[310912199,1704814349632,-980.88,0.00041671,30]
[310912200,1704814349642,-231.26477615,0.00041671,30]
[310912201,1704814349652,-730.77,0.00041671,30]
[310912202,1704814349662,-352.55595945,0.00041671,30]
[310912203,1704814349672,-500.0,0.00041671,30]
[310912204,1704814349682,-500.0,0.00041671,30]
[310912205,1704814349693,-635.39,0.00041671,30]
[310912206,1704814349702,-500.0,0.00041671,30]
[310912207,1704814349712,-921.8,0.00041671,30]
[310912208,1704814349722,-500.0,0.00041671,30]
[310912209,1704814349731,-613.33,0.00041671,30]
[310912210,1704814349741,-500.0,0.00041671,30]
[310912211,1704814349751,-1001.03,0.00041671,30]
[310912212,1704814349761,-2820.32,0.00041671,30]
[310912213,1704814349771,-500.0,0.00041671,30]
[310912214,1704814349781,-878.02,0.00041671,30]
[310912215,1704814349791,-2535.74,0.00041671,30]
[310912216,1704814349801,-500.0,0.00041671,30]
[310912217,1704814349811,-500.0,0.00041671,30]
[310912218,1704814349824,-1197.1,0.00041671,30]
[310912219,1704814349834,-500.0,0.00041671,30]
[310912220,1704814349845,-410.10090591,0.00041671,30]
[310912221,1704814349855,-703.38,0.00041671,30]
[310912222,1704814349865,-500.0,0.00041671,30]
[310912223,1704814349875,-500.0,0.00041671,30]
[310912224,1704814349885,-500.0,0.00041671,30]
[310912225,1704814349895,-500.0,0.00041671,30]
[310912226,1704814349905,-500.0,0.00041671,30]
[310912227,1704814349914,-500.0,0.00041671,30]
[310912228,1704814349925,-1209.27,0.00041671,30]
[310912229,1704814349935,-3470.75,0.00041671,30]
[310912230,1704814349944,-500.0,0.00041671,30]
[310912231,1704814349954,-736.81,0.00041671,30]
[310912232,1704814349964,-500.0,0.00041671,30]
[310912233,1704814349974,-500.0,0.00041671,30]
[310912234,1704814349983,-832.75,0.00041671,30]
[310912235,1704814349993,-1686.91,0.00041671,30]
[310912236,1704814350003,-2682.01,0.00041671,30]
[310912237,1704814350013,-2537.38,0.00041671,30]
[310912238,1704814350023,-1565.58,0.00041671,30]
[310912239,1704814350033,-740.27,0.00041671,30]
[310912240,1704814350043,-600.36,0.00041671,30]
[310912241,1704814350053,-501.25,0.00041671,30]
[310912242,1704814350063,-500.0,0.00041671,30]
[310912243,1704814350074,-1224.61,0.00041671,30]
[310912244,1704814350084,-2236.0,0.00041671,30]
[310912245,1704814350094,-2897.3,0.00041671,30]
[310912246,1704814350104,-1928.1,0.00041671,30]
[310912247,1704814350113,-1993.87,0.00041671,30]
[310912248,1704814350123,-576.08,0.00041671,30]
[310912249,1704814350133,-500.0,0.00041671,30]
[310912250,1704814350143,-556.49,0.00041671,30]
[310912251,1704814350153,-624.68,0.00041671,30]
[310912252,1704814350163,-2377.69,0.00041671,30]
[310912253,1704814350173,-770.16,0.00041671,30]
[310912254,1704814350183,-1122.24,0.00041671,30]
[310912255,1704814350193,-500.0,0.00041671,30]
[310912256,1704814350202,-500.0,0.00041671,30]
[310912257,1704814350212,-500.0,0.00041671,30]
[310912258,1704814350222,-2275.75,0.00041671,30]
[310912259,1704814350232,-2702.81,0.00041671,30]
[310912260,1704814350242,-500.0,0.00041671,30]
[310912261,1704814350252,-500.0,0.00041671,30]
[310912262,1704814350261,-1074.62,0.00041671,30]
[310912263,1704814350271,-787.86,0.00041671,30]
[310912264,1704814350281,-500.0,0.00041671,30]
[310912265,1704814350291,-2309.85,0.00041671,30]
[310912266,1704814350301,-3474.73,0.00041671,30]
[310912267,1704814350311,-2283.1,0.00041671,30]
[310912268,1704814350321,-500.0,0.00041671,30]
[310912269,1704814350331,-1596.69,0.00041671,30]
[310912270,1704814350341,-1645.78,0.00041671,30]
[310912271,1704814350352,-1113.3,0.00041671,30]
[310912272,1704814350361,-1309.33,0.00041671,30]
[310912273,1704814350371,-1314.94,0.00041671,30]
[310912274,1704814350380,-500.0,0.00041671,30]
[310912275,1704814350390,-1968.01,0.00041671,30]
[310912276,1704814350400,-506.33894096,0.00041671,2]
[310912277,1704814350410,-1096.11,0.00041671,30]
[310912278,1704814350419,-721.49,0.00041671,30]
[310912279,1704814350429,-1246.22,0.00041671,30]
[310912280,1704814350439,-544.47,0.00041671,30]
[310912281,1704814350449,-1433.82,0.00041671,30]
[310912282,1704814350459,-2589.92,0.00041671,30]
[310912283,1704814350468,-500.0,0.00041671,30]
[310912284,1704814350478,-500.0,0.00041671,30]
[310912285,1704814350488,-500.0,0.00041671,30]
[310912286,1704814350497,-1499.73,0.00041671,30]
[310912287,1704814350507,-500.0,0.00041671,30]
[310912288,1704814350518,-500.0,0.00041671,30]
[310912289,1704814350528,-1138.55,0.00041671,30]
[310912290,1704814350537,-2193.46,0.00041671,30]
[310912291,1704814350547,-1590.0,0.00041671,30]
[310912292,1704814350557,-1703.93,0.00041671,30]
[310912293,1704814350566,-1188.38,0.00041671,30]
[310912294,1704814350576,-500.0,0.00041671,30]
[310912295,1704814350586,-500.0,0.00041671,30]
[310912296,1704814350596,-500.0,0.00041671,30]
[310912297,1704814350606,-987.73,0.00041671,30]
[310912298,1704814350615,-520.23,0.00041671,30]
[310912299,1704814350625,-1982.92,0.00041671,30]
[310912300,1704814350635,-523.39,0.00041671,30]
[310912301,1704814350645,-562.23,0.00041671,30]
[310912302,1704814350654,-641.09,0.00041671,30]
[310912303,1704814350664,-931.93,0.00041671,30]
[310912304,1704814350673,-552.3,0.00041671,30]
[310912305,1704814350682,-1038.62,0.00041671,30]
[310912306,1704814350692,-1121.37,0.00041671,30]
[310912307,1704814350702,-300.62311991,0.00041671,30]
[310912308,1704814350712,-3941.88,0.00041671,30]
[310912309,1704814350721,-1704.41,0.00041671,30]
[310912310,1704814350730,-1031.35,0.00041671,30]
[310912311,1704814350740,-600.61,0.00041671,30]
[310912312,1704814350749,-672.4,0.00041671,30]
[310912313,1704814350758,-1793.95,0.00041671,30]
[310912314,1704814350768,-500.0,0.00041671,30]
[310912315,1704814350777,-830.11,0.00041671,30]
[310912316,1704814350787,-626.73,0.00041671,30]
[310912317,1704814350796,-1939.09,0.00041671,30]
[310912318,1704814350806,-500.0,0.00041671,30]
[310912319,1704814350817,-500.0,0.00041671,30]
[310912320,1704814350827,-1992.23,0.00041671,30]
[310912321,1704814350837,-1672.06,0.00041671,30]
[310912322,1704814350846,-500.0,0.00041671,30]
[310912323,1704814350856,-1049.82,0.00041671,30]
[310912324,1704814350865,-832.6,0.00041671,30]
[310912325,1704814350874,-592.07,0.00041671,30]
[310912326,1704814350883,-1154.73,0.00041671,30]
[310912327,1704814350893,-617.46,0.00041671,30]
[310912328,1704814350902,-500.0,0.00041671,30]
[310912329,1704814350911,-2019.49,0.00041671,30]
[310912330,1704814350921,-500.0,0.00041671,30]
[310912331,1704814350930,-623.61,0.00041671,30]
[310912332,1704814350939,-1575.33,0.00041671,30]
[310912333,1704814350949,-261.54816575,0.00041671,30]
[310912334,1704814350958,-500.0,0.00041671,30]
[310912335,1704814350967,-500.0,0.00041671,30]
[310912336,1704814350977,-1208.87,0.00041671,30]
[310912337,1704814350987,-589.72,0.00041671,30]
[310912338,1704814350996,-500.0,0.00041671,30]
[310912339,1704814351005,-1100.7,0.00041671,30]
[310912340,1704814351014,-500.0,0.00041671,30]
[310912341,1704814351024,-574.55,0.00041671,30]
[310912342,1704814351033,-1443.2,0.00041671,30]
[310912343,1704814351043,-1118.67,0.00041671,30]
[310912344,1704814351053,-500.0,0.00041671,30]
[310912345,1704814351063,-1567.43,0.00041671,30]
[310912346,1704814351072,-500.0,0.00041671,30]
[310912347,1704814351081,-538.72,0.00041671,30]
[310912348,1704814351092,-500.0,0.00041671,30]
[310912349,1704814351102,-615.94,0.00041671,30]
[310912350,1704814351111,-500.0,0.00041671,30]
[310912351,1704814351121,-1835.01,0.00041671,30]
[310912352,1704814351130,-500.0,0.00041671,30]
[310912353,1704814351140,-835.4,0.00041671,30]
[310912354,1704814351149,-500.0,0.00041671,30]
[310912355,1704814351159,-500.0,0.00041671,30]
[310912356,1704814351169,-500.0,0.00041671,30]
[310912357,1704814351179,-2298.01,0.00041671,30]
[310912358,1704814351189,-500.0,0.00041671,30]
[310912359,1704814351199,-870.0,0.00041671,30]
[310912360,1704814351208,-539.47,0.00041671,30]
[310912361,1704814351218,-1150.5,0.00041671,30]
[310912362,1704814351228,-1310.11,0.00041671,30]
[310912363,1704814351238,-500.0,0.00041671,30]
[310912364,1704814351248,-500.0,0.00041671,30]
[310912365,1704814351258,-1400.49,0.00041671,30]
[310912366,1704814351268,-1360.64,0.00041671,30]
[310912367,1704814351279,-500.0,0.00041671,30]
[310912368,1704814351293,-923.19,0.00041671,30]
[310912369,1704814351303,-1204.31,0.00041671,30]
[310912370,1704814351313,-771.54,0.00041671,30]
[310912371,1704814351323,-2584.55,0.00041671,30]
[310912372,1704814351333,-1160.23,0.00041671,30]
[310912373,1704814351343,-500.0,0.00041671,30]
[310912374,1704814351353,-500.0,0.00041671,30]
[310912375,1704814351525,-1315.98,0.00041671,30]
[310912376,1704814351534,-500.0,0.00041671,10]
[310912377,1704814351544,-1972.08,0.00041671,30]
[310912378,1704814351553,-1668.26,0.00041671,30]
[310912379,1704814351563,-1439.0,0.00041671,30]
[310912380,1704814351572,-1429.35,0.00041671,30]
[310912381,1704814351582,-2461.03,0.00041671,30]
[310912382,1704814351591,-946.78,0.00041671,30]
[310912383,1704814351601,-713.51,0.00041671,30]
[310912384,1704814351611,-500.0,0.00041671,4]
[310912385,1704814351622,-1659.56,0.00041671,30]
[310912386,1704814351632,-500.0,0.00041671,30]
[310912387,1704814351641,-500.0,0.00041671,30]
[310912388,1704814351651,-500.0,0.00041671,30]
[310912389,1704814351660,-500.0,0.00041671,30]
[310912390,1704814351669,-209.55,0.00041671,30]
[310912391,1704814351678,-500.0,0.00041671,30]
[310912392,1704814351689,-500.0,0.00041671,30]
[310912393,1704814351698,-803.78,0.00041671,30]
[310912394,1704814351707,-531.12105011,0.00041671,30]
[310912395,1704814351717,-614.42,0.00041671,30]
[310912396,1704814351726,-426.066744,0.00041671,30]
[310912397,1704814351735,-1000.0,0.00041671,7]
[310912398,1704814351744,-500.0,0.00041671,30]
[310912399,1704814351753,-800.95,0.00041671,30]
[310912400,1704814351763,-1758.64,0.00041671,30]
[310912401,1704814351772,-500.0,0.00041671,30]
[310912402,1704814351781,-500.0,0.00041671,30]
[310912403,1704814351790,-848.11,0.00041671,30]
[310912404,1704814351799,-1778.42,0.00041671,30]
[310912405,1704814351810,-3407.77,0.00041671,30]
[310912406,1704814351825,-2138.28,0.00041671,30]
[310912407,1704814351835,-500.0,0.00041671,30]
[310912408,1704814351845,-157.92473713,0.00041671,30]
[310912409,1704814351855,-500.0,0.00041671,30]
[310912410,1704814351865,-886.41,0.00041671,30]
[310912411,1704814351874,-500.0,0.00041671,30]
[310912412,1704814351884,-500.0,0.00041671,30]
[310912413,1704814351893,-1677.31,0.00041671,30]
[310912414,1704814351903,-500.0,0.00041671,30]
[310912415,1704814351913,-500.0,0.00041671,30]
[310912416,1704814351923,-3178.9,0.00041671,30]
[310912417,1704814351932,-1138.73,0.00041671,30]
[310912418,1704814351942,-2732.04,0.00041671,30]
[310912419,1704814351951,-500.0,0.00041671,30]
[310912420,1704814351961,-770.65,0.00041671,30]
[310912421,1704814351971,-500.0,0.00041671,30]
[310912422,1704814351981,-2194.76,0.00041671,30]
[310912423,1704814351990,-500.0,0.00041671,30]
[310912424,1704814351999,-1008.53,0.00041671,30]
[310912425,1704814352009,-1048.75,0.00041671,30]
[310912426,1704814352018,-500.0,0.00041671,30]
[310912427,1704814352028,-1329.34,0.00041671,30]
[310912428,1704814352037,-2754.0,0.00041671,30]
[310912429,1704814352047,-643.29381831,0.00041671,30]
[310912430,1704814352056,-1507.83,0.00041671,30]
[310912431,1704814352067,-298.97970518,0.00041671,30]